fUST/lending_fUST_20250611
["ID","MTS","AMOUNT","RATE_DAILY","PERIOD"]
[365275893,1749573047613,-460.0,0.00024657,2]
[365275894,1749573047623,-588.52,0.00024657,4]
[365275895,1749573047632,-543.87,0.00024657,4]
[365275896,1749573047641,-460.0,0.00024657,4]
[365275897,1749573047651,-977.2,0.00024657,4]
[365275898,1749573047661,-1069.48,0.00024657,4]
[365275899,1749573047670,-1413.48,0.00024657,4]
[365275900,1749573047679,-575.37,0.00024657,4]
[365275901,1749573047689,-1457.97,0.00024657,4]
[365275902,1749573047699,-507.34,0.00024657,4]
[365275903,1749573047709,-863.37,0.00024657,4]
[365275904,1749573047719,-1214.53,0.00024657,4]
[365275905,1749573047728,-200.0,0.00024658,15]
[365275906,1749573047738,-1337.0,0.00024658,2]
[365275907,1749573047747,-2000.0,0.000247,2]
[365275908,1749573047756,-2000.0,0.000247,2]
[365275909,1749573047766,-2000.0,0.000247,2]
[365275910,1749573047775,-457.14,0.000247,7]
[365275911,1749573047784,-2000.0,0.000247,2]
[365275912,1749573047794,-206.11661604,0.00024728,11]
[365275913,1749573047803,-3073.31073197,0.00024751,2]
[365275914,1749573047812,-52135.21247971,0.00024752,2]
[365275915,1749573047822,-8781.24973662,0.00024754,2]
[365275916,1749573047831,-5000.0,0.00024754,2]
[365275917,1749573047841,-5000.0,0.00024754,2]
[365275918,1749573047851,-5000.0,0.00024754,2]
[365275919,1749573047860,-5000.0,0.00024754,2]
[365275920,1749573047869,-63.4303317,0.00024761,2]
[365275921,1749573047879,-5000.0,0.00024795,2]
[365275922,1749573047888,-250.0,0.000248,2]
[365275923,1749573047897,-250.0,0.000248,2]
[365275924,1749573047907,-250.0,0.000248,2]
[365275925,1749573047916,-250.0,0.000248,2]
[365275926,1749573047925,-250.0,0.000248,2]
[365275927,1749573047934,-250.0,0.000248,2]
[365275928,1749573047945,-250.0,0.000248,2]
[365275929,1749573047954,-250.0,0.000248,2]
[365275930,1749573047963,-250.0,0.000248,2]
[365275931,1749573047973,-250.0,0.000248,2]
[365275932,1749573047982,-250.0,0.000248,2]
[365275933,1749573047992,-250.0,0.000248,2]
[365275934,1749573048002,-250.0,0.000248,2]
[365275935,1749573048012,-250.0,0.000248,2]
[365275936,1749573048021,-250.0,0.000248,2]
[365275937,1749573048031,-250.0,0.000248,2]
[365275938,1749573048041,-250.0,0.000248,2]
[365275939,1749573048050,-298.0,0.000248,2]
[365275940,1749573048060,-187.548424,0.000248,2]
[365275941,1749573048070,-151.0,0.00024843,7]
[365275942,1749573048079,-151.472035,0.00024843,7]
[365275943,1749573048090,-151.0,0.00024848,7]
[365275944,1749573048100,-151.0,0.00024848,7]
[365275945,1749573048110,-151.0,0.00024848,7]
[365275946,1749573048119,-151.0,0.00024848,7]
[365275947,1749573048129,-151.0,0.00024848,7]
[365275948,1749573048139,-154.831013,0.00024848,7]
[365275949,1749573048149,-151.0,0.00024848,7]
[365275950,1749573048158,-213.036528,0.00024848,7]
[365275951,1749573048168,-151.0,0.00024848,7]
[365275952,1749573048177,-151.0,0.00024848,7]
[365275953,1749573048187,-151.0,0.00024848,7]
[365275954,1749573048198,-151.0,0.00024848,7]
[365275955,1749573048208,-151.0,0.00024848,7]
[365275956,1749573048218,-153.164763,0.00024848,7]
[365275957,1749573048229,-158.6873432,0.00024849,2]
[365275958,1749573048240,-176.7524085,0.00024849,2]
[365275959,1749573048250,-153.0,0.00024849,2]
[365275960,1749573048260,-491.6054712,0.00024849,2]
[365275961,1749573048270,-573.3540349,0.00024849,2]
[365275962,1749573048280,-153.0,0.00024849,2]
[365275963,1749573048292,-573.3540349,0.00024849,2]
[365275964,1749573048302,-153.0,0.00024849,2]
[365275965,1749573048313,-573.3540349,0.00024849,2]
[365275966,1749573048323,-153.0,0.00024849,2]
[365275967,1749573048333,-383.4265406,0.00024849,2]
[365275968,1749573048342,-395.0,0.0002485,2]
[365275969,1749573048353,-206.0,0.0002485,2]
[365275970,1749573048362,-500.0,0.0002485,2]
[365275971,1749573048372,-206.0,0.0002485,2]
[365275972,1749573048382,-1001.13009668,0.0002485,60]
[365275973,1749573048392,-1500.0,0.00024851,14]
[365275974,1749573048402,-1500.0,0.00024851,14]
[365275975,1749573048412,-1500.0,0.00024851,14]
[365275976,1749573048421,-1500.0,0.00024851,14]
[365275977,1749573048431,-1500.0,0.00024851,14]
[365275978,1749573048442,-1500.0,0.00024851,14]
[365275979,1749573048453,-1500.0,0.00024851,14]
[365275980,1749573048463,-1500.0,0.00024851,14]
[365275981,1749573048473,-1500.0,0.00024851,14]
[365275982,1749573048483,-1500.0,0.00024851,14]
[365275983,1749573048493,-1500.0,0.00024851,14]
[365275984,1749573048503,-1500.0,0.00024851,14]
[365275985,1749573048513,-1500.0,0.00024851,14]
[365275986,1749573048522,-1500.0,0.00024851,14]
[365275987,1749573048532,-1500.0,0.00024851,14]
[365275988,1749573048541,-1500.0,0.00024851,14]
[365275989,1749573048551,-1500.0,0.00024851,14]
[365275990,1749573048561,-1500.0,0.00024851,14]
[365275991,1749573048571,-1500.0,0.00024851,14]
[365275992,1749573048580,-1500.0,0.00024851,14]
[365275993,1749573048590,-1500.0,0.00024851,14]
[365275994,1749573048598,-1500.0,0.00024851,14]
[365275995,1749573048608,-1500.0,0.00024851,14]
[365275996,1749573048618,-1500.0,0.00024851,14]
[365275997,1749573048629,-1500.0,0.00024851,14]
[365275998,1749573048638,-1500.0,0.00024851,14]
[365275999,1749573048648,-1500.0,0.00024851,14]
[365276000,1749573048658,-1500.0,0.00024851,14]
[365276001,1749573048668,-1500.0,0.00024851,14]
[365276002,1749573048678,-1500.0,0.00024851,14]
[365276003,1749573048687,-1500.0,0.00024851,14]
[365276004,1749573048698,-1500.0,0.00024851,14]
[365276005,1749573048708,-1500.0,0.00024851,14]
[365276006,1749573048717,-1500.0,0.00024851,14]
[365276007,1749573048726,-1500.0,0.00024851,14]
[365276008,1749573048736,-202.84866,0.00024851,14]
[365276009,1749573048746,-151.0,0.00024851,7]
[365276010,1749573048755,-151.0,0.00024851,7]
[365276011,1749573048766,-151.0,0.00024851,7]
[365276012,1749573048775,-151.0,0.00024851,7]
[365276013,1749573048785,-151.0,0.00024851,7]
[365276014,1749573048794,-217.679424,0.00024851,7]
[365276015,1749573048804,-152.75216,0.00024851,7]
[365276016,1749573048814,-151.0,0.00024851,7]
[365276017,1749573048823,-151.0,0.00024851,7]
[365276018,1749573048832,-175.519055,0.00024851,7]
[365276019,1749573048842,-151.0,0.00024851,7]
[365276020,1749573048851,-186.738039,0.00024851,7]
[365276021,1749573048861,-186.738039,0.00024851,7]
[365276022,1749573048871,-186.738039,0.00024851,7]
[365276023,1749573048880,-186.738039,0.00024851,7]
[365276024,1749573048889,-186.738039,0.00024851,7]
[365276025,1749573048899,-186.738039,0.00024851,7]
[365276026,1749573048909,-186.738039,0.00024851,7]
[365276027,1749573048918,-186.738039,0.00024851,7]
[365276028,1749573048928,-186.738039,0.00024851,7]
[365276029,1749573048937,-186.738039,0.00024851,7]
[365276030,1749573048947,-186.738039,0.00024851,7]
[365276031,1749573048957,-186.738039,0.00024851,7]
[365276032,1749573048967,-186.738039,0.00024851,7]
[365276033,1749573048976,-186.738039,0.00024851,7]
[365276034,1749573048986,-186.738039,0.00024851,7]
[365276035,1749573048996,-186.738039,0.00024851,7]
[365276036,1749573049006,-186.738039,0.00024851,7]
[365276037,1749573049015,-186.738039,0.00024851,7]
[365276038,1749573049024,-186.738039,0.00024851,7]
[365276039,1749573049034,-186.738038,0.00024851,7]
[365276040,1749573049162,-151.0,0.00024851,7]
[365276041,1749573049173,-151.0,0.00024851,7]
[365276042,1749573049183,-151.0,0.00024851,7]
[365276043,1749573049193,-151.0,0.00024851,7]
[365276044,1749573049204,-151.0,0.00024851,7]
[365276045,1749573049214,-151.0,0.00024851,7]
[365276046,1749573049225,-151.0,0.00024851,7]
[365276047,1749573049235,-151.0,0.00024851,7]
[365276048,1749573049246,-151.0,0.00024851,7]
[365276049,1749573049256,-151.0,0.00024851,7]
[365276050,1749573049267,-151.0,0.00024851,7]
[365276051,1749573049277,-151.0,0.00024851,7]
[365276052,1749573049289,-225.497974,0.00024851,7]
[365276053,1749573049302,-151.0,0.00024851,7]
[365276054,1749573049312,-151.0,0.00024851,7]
[365276055,1749573049323,-151.0,0.00024851,7]
[365276056,1749573049332,-151.0,0.00024851,7]
[365276057,1749573049343,-151.0,0.00024851,7]
[365276058,1749573049353,-151.0,0.00024851,7]
[365276059,1749573049362,-151.669595,0.00024851,7]
[365276060,1749573049372,-151.0,0.00024851,7]
[365276061,1749573049382,-151.0,0.00024851,7]
[365276062,1749573049392,-205.06927,0.00024851,7]
[365276063,1749573049402,-340.693996,0.00024851,7]
[365276064,1749573049412,-340.693996,0.00024851,7]
[365276065,1749573049422,-340.693996,0.00024851,7]
[365276066,1749573049433,-340.693996,0.00024851,7]
[365276067,1749573049442,-340.693996,0.00024851,7]
[365276068,1749573049454,-340.693996,0.00024851,7]
[365276069,1749573049464,-340.693996,0.00024851,7]
[365276070,1749573049474,-340.693996,0.00024851,7]
[365276071,1749573049484,-340.693996,0.00024851,7]
[365276072,1749573049493,-340.693996,0.00024851,7]
[365276073,1749573049504,-340.693996,0.00024851,7]
[365276074,1749573049512,-340.693996,0.00024851,7]
[365276075,1749573049522,-340.693996,0.00024851,7]
[365276076,1749573049532,-340.693996,0.00024851,7]
[365276077,1749573049542,-340.693996,0.00024851,7]
[365276078,1749573049552,-340.693996,0.00024851,7]
[365276079,1749573049561,-340.693996,0.00024851,7]
[365276080,1749573049571,-340.693996,0.00024851,7]
[365276081,1749573049581,-340.693996,0.00024851,7]
[365276082,1749573049591,-340.693999,0.00024851,7]
[365276083,1749573049600,-151.0,0.00024851,7]
[365276084,1749573049610,-151.0,0.00024851,7]
[365276085,1749573049620,-151.721634,0.00024851,7]
[365276086,1749573049630,-151.0,0.00024851,7]
[365276087,1749573049640,-151.0,0.00024851,7]
[365276088,1749573049650,-151.0,0.00024851,7]
[365276089,1749573049660,-151.0,0.00024851,7]
[365276090,1749573049669,-151.0,0.00024851,7]
[365276091,1749573049678,-151.0,0.00024851,7]
[365276092,1749573049688,-230.158392,0.00024851,7]
[365276093,1749573049698,-151.0,0.00024851,7]
[365276094,1749573049709,-22280.17986156,0.00024851,2]
[365276095,1749573049718,-33485.17612286,0.00024851,2]
[365276096,1749573050014,-460.0,0.00021095,4]
[365276097,1749573050024,-39.950315,0.00021369,4]
[365276098,1749573050035,-420.049685,0.00021369,4]
[365276099,1749573050044,-567.79749337,0.00021643,4]
[365276100,1749573050054,-500.0,0.0002304,4]
[365276101,1749573050063,-232.97706971,0.0002304,4]
[365276102,1749573050072,-500.0,0.00023067,4]
[365276103,1749573050082,-500.0,0.00023095,4]
[365276104,1749573050091,-500.0,0.00023122,4]
[365276105,1749573050101,-500.0,0.0002315,4]
[365276106,1749573050110,-500.0,0.00023177,4]
[365276107,1749573050119,-500.0,0.00023204,4]
[365276108,1749573050128,-527.023099,0.00023232,4]
[365276109,1749573050137,-993.7598211,0.00023799,2]
[365276110,1749573050147,-993.7598211,0.00023799,2]
[365276111,1749573050156,-993.7598211,0.00023799,2]
[365276112,1749573050165,-993.7598211,0.00023799,2]
[365276113,1749573050174,-993.7598211,0.00023799,2]
[365276114,1749573050183,-993.7598211,0.00023799,2]
[365276115,1749573050192,-993.7598211,0.00023799,2]
[365276116,1749573050202,-993.7598211,0.00023799,2]
[365276117,1749573050211,-424.12530924,0.000238,3]
[365276118,1749573050221,-965.62,0.00023952,2]
[365276119,1749573050230,-1346.1,0.00024657,4]
[365276120,1749573050240,-36790.50971426,0.00024851,2]
[365276121,1749573050249,-3888746.648152,0.00024852,20]
[365276122,1749573050261,-71721.62854643,0.00024852,20]
[365276123,1749573050272,-126341.75602391,0.00024852,20]
[365276124,1749573050283,-21546.15258425,0.00024852,20]
[365276147,1749573261398,1344.05077788,0.00024844,60]
[365276180,1749573688826,228.891327,0.00013699,2]
[365276182,1749573718084,9918.13453,0.000245,120]
[365276184,1749573900368,10000.0,0.000245,120]
[365276759,1749574169812,500.0,0.000247,120]
[365277630,1749574224590,545.29131388,0.000247,120]
[365277666,1749574232095,-214.04022723,0.000189,2]
[365277669,1749574232105,-165.842008,0.00019969,2]
[365277672,1749574232115,-228.891327,0.00020187,2]
[365277676,1749574232125,-404.521252,0.00020462,2]
[365277678,1749574232135,-236.75669962,0.00020728,2]
[365277681,1749574232145,-711.42,0.00020787,2]
[365277684,1749574232154,-500.0,0.00021016,2]
[365277687,1749574232164,-52.82831015,0.00021094,2]
[365277702,1749574232289,-247.17168985,0.00021094,2]
[365277704,1749574232299,-181.16,0.00021094,2]
[365277706,1749574232309,-300.0,0.00021094,2]
[365277709,1749574232318,-76.45831015,0.00021095,4]
[365277777,1749574238012,-383.54168985,0.00021095,4]
[365277779,1749574238022,-440.0,0.00021095,4]
[365277781,1749574238032,-440.0,0.00021095,4]
[365277783,1749574238041,-440.0,0.00021095,4]
[365277785,1749574238050,-440.0,0.00021095,4]
[365277787,1749574238060,-430.0,0.00021095,4]
[365277789,1749574238069,-421.68218199,0.00021095,4]
[365277791,1749574238078,-440.0,0.00021095,4]
[365277793,1749574238088,-190.09276605,0.00021095,4]
[365277796,1749574238100,-249.90723395,0.00021095,4]
[365277798,1749574238109,-430.0,0.00021095,4]
[365277800,1749574238119,-440.0,0.00021095,4]
[365277802,1749574238128,-440.0,0.00021095,4]
[365277804,1749574238137,-460.0,0.00021095,4]
[365277806,1749574238147,-350.36734478,0.00021095,4]
[365277808,1749574238156,-460.0,0.00021095,4]
[365277810,1749574238168,-440.0,0.00021095,4]
[365277811,1749574238178,-460.0,0.00021095,4]
[365277813,1749574238187,-440.0,0.00021095,4]
[365277815,1749574238196,-376.54163954,0.00021095,4]
[365277817,1749574238205,-460.0,0.00021095,4]
[365277819,1749574238216,-420.0,0.00021095,4]
[365277822,1749574238225,-290.0,0.00021095,4]
[365277824,1749574238236,-476.14927129,0.00021095,4]
[365277825,1749574238245,-440.0,0.00021095,4]
[365277827,1749574238254,-334.02780532,0.00021095,4]
[365277829,1749574238263,-440.0,0.00021095,4]
[365277831,1749574238273,-440.0,0.00021095,4]
[365277833,1749574238282,-460.0,0.00021095,4]
[365277847,1749574238430,-532.26312975,0.00021095,4]
[365277849,1749574238440,-430.0,0.00021095,4]
[365277850,1749574238450,-440.0,0.00021095,4]
[365277852,1749574238459,-280.0,0.00021095,4]
[365277854,1749574238468,-460.0,0.00021095,4]
[365277855,1749574238478,-440.0,0.00021095,4]
[365277857,1749574238488,-460.0,0.00021095,4]
[365277859,1749574238497,-280.0,0.00021095,4]
[365277860,1749574238506,-460.0,0.00021095,4]
[365277862,1749574238515,-460.0,0.00021095,4]
[365277864,1749574238525,-440.0,0.00021095,4]
[365277866,1749574238534,-320.0,0.00021095,4]
[365277867,1749574238544,-440.0,0.00021095,4]
[365277869,1749574238554,-433.64732835,0.00021095,4]
[365277871,1749574238564,-460.0,0.00021095,4]
[365277873,1749574238574,-440.0,0.00021095,4]
[365277874,1749574238584,-253.22381847,0.00021095,4]
[365277876,1749574238594,-440.0,0.00021095,4]
[365277878,1749574238603,-460.0,0.00021095,4]
[365277879,1749574238612,-659.32,0.00021095,4]
[365277881,1749574238621,-556.71,0.00021095,4]
[365277883,1749574238631,-372.22530489,0.00021095,4]
[365277884,1749574238640,-460.0,0.00021095,4]
[365277886,1749574238649,-460.0,0.00021095,4]
[365277888,1749574238659,-390.0,0.00021095,4]
[365277889,1749574238668,-460.0,0.00021095,4]
[365277891,1749574238681,-460.0,0.00021095,4]
[365277893,1749574238691,-460.0,0.00021095,4]
[365277895,1749574238701,-460.0,0.00021095,4]
[365277896,1749574238711,-460.0,0.00021095,4]
[365277898,1749574238721,-559.68,0.00021095,4]
[365277900,1749574238730,-460.0,0.00021095,4]
[365277901,1749574238739,-440.0,0.00021095,4]
[365277903,1749574238750,-460.0,0.00021095,4]
[365277905,1749574238759,-460.0,0.00021095,4]
[365277906,1749574238769,-440.0,0.00021095,4]
[365277908,1749574238778,-767.4,0.00021095,4]
[365277910,1749574238787,-59.26860377,0.00021095,4]
[365277912,1749574238800,-400.73139623,0.00021095,4]
[365277914,1749574238809,-329.2,0.00021095,4]
[365277915,1749574238819,-460.0,0.00021095,4]
[365277917,1749574238828,-602.66,0.00021095,4]
[365277918,1749574238837,-307.26723884,0.00021095,4]
[365277920,1749574238849,-152.73276116,0.00021095,4]
[365277922,1749574238859,-460.0,0.00021095,4]
[365277924,1749574238868,-325.78620553,0.00021095,4]
[365277926,1749574238877,-1135.0,0.00021095,4]
[365277928,1749574238886,-430.0,0.00021095,4]
[365277929,1749574238895,-712.88,0.00021095,4]
[365277931,1749574238905,-430.0,0.00021095,4]
[365277932,1749574238914,-430.0,0.00021095,4]
[365277934,1749574238923,-460.0,0.00021095,4]
[365277936,1749574238932,-460.0,0.00021095,4]
[365277938,1749574238942,-460.0,0.00021095,2]
[365277940,1749574238951,-460.0,0.00021095,4]
[365277941,1749574238961,-460.0,0.00021095,4]
[365277943,1749574238970,-592.36,0.00021095,4]
[365277945,1749574238980,-617.71,0.00021095,4]
[365277947,1749574238989,-143.07766382,0.00021095,4]
[365277949,1749574239001,-319.72233618,0.00021095,4]
[365277950,1749574239010,-460.0,0.00021095,4]
[365277952,1749574239019,-460.0,0.00021095,4]
[365277953,1749574239029,-460.0,0.00021095,4]
[365277955,1749574239038,-380.0,0.00021095,4]
[365277957,1749574239047,-985.94,0.00021095,4]
[365277958,1749574239056,-907.48779373,0.00021095,4]
[365277961,1749574239072,-76.25220627,0.00021095,4]
[365277962,1749574239082,-344.9065496,0.00021095,4]
[365277964,1749574239094,-115.0934504,0.00021095,4]
[365277966,1749574239103,-196.4865496,0.00021095,4]
[365277968,1749574239115,-580.51443761,0.00021095,4]
[365277970,1749574239126,-369.21901279,0.00021095,4]
[365277972,1749574239135,-49.4825194,0.00021095,4]
[365277973,1749574239147,-250.5174806,0.00021095,4]
[365277975,1749574239157,-460.0,0.00021095,4]
[365277977,1749574239166,-544.99,0.00021095,4]
[365277979,1749574239175,-1423.35,0.00021095,4]
[365277980,1749574239184,-460.0,0.00021095,4]
[365277982,1749574239194,-460.0,0.00021095,4]
[365277984,1749574239203,-875.11,0.00021095,4]
[365277986,1749574239212,-1243.9,0.00021095,4]
[365277987,1749574239221,-1008.16,0.00021095,4]
[365277989,1749574239230,-460.0,0.00021095,4]
[365277991,1749574239240,-460.0,0.00021095,4]
[365277993,1749574239249,-460.0,0.00021095,4]
[365277994,1749574239259,-460.0,0.00021095,4]
[365277996,1749574239268,-460.0,0.00021095,4]
[365277998,1749574239277,-440.0,0.00021095,4]
[365278000,1749574239286,-482.14,0.00021095,4]
[365278001,1749574239295,-180.0,0.00021095,4]
[365278003,1749574239304,-460.0,0.00021095,4]
[365278005,1749574239314,-460.0,0.00021095,4]
[365278007,1749574239322,-460.0,0.00021095,4]
[365278008,1749574239332,-331.356441,0.00021095,2]
[365278010,1749574239341,-500.0,0.00021366,2]
[365278012,1749574239350,-347.01542089,0.00021369,4]
[365278013,1749574239361,-420.0,0.00021369,4]
[365278015,1749574239370,-420.0,0.00021369,4]
[365278017,1749574239379,-340.0,0.00021369,4]
[365278019,1749574239388,-460.0,0.00021369,4]
[365278020,1749574239397,-460.0,0.00021369,4]
[365278022,1749574239407,-220.0,0.00021369,4]
[365278024,1749574239417,-540.0,0.00021369,4]
[365278026,1749574239426,-460.0,0.00021369,4]
[365278028,1749574239435,-460.0,0.00021369,4]
[365278029,1749574239445,-460.0,0.00021369,4]
[365278031,1749574239454,-460.0,0.00021369,4]
[365278033,1749574239463,-659.32,0.00021369,4]
[365278034,1749574239472,-556.71,0.00021369,4]
[365278035,1749574239482,-320.0,0.00021369,4]
[365278037,1749574239492,-460.0,0.00021369,4]
[365278039,1749574239501,-460.0,0.00021369,4]
[365278040,1749574239510,-460.0,0.00021369,4]
[365278041,1749574239519,-460.0,0.00021369,4]
[365278043,1749574239528,-460.0,0.00021369,4]
[365278045,1749574239537,-460.0,0.00021369,4]
[365278047,1749574239547,-559.68,0.00021369,4]
[365278049,1749574239556,-460.0,0.00021369,4]
[365278050,1749574239566,-460.0,0.00021369,4]
[365278052,1749574239575,-460.0,0.00021369,4]
[365278054,1749574239584,-767.4,0.00021369,4]
[365278056,1749574239594,-460.0,0.00021369,4]
[365278057,1749574239603,-602.66,0.00021369,4]
[365278059,1749574239612,-460.0,0.00021369,4]
[365278061,1749574239622,-220.0,0.00021369,4]
[365278063,1749574239631,-1135.0,0.00021369,4]
[365278065,1749574239641,-712.88,0.00021369,4]
[365278066,1749574239650,-460.0,0.00021369,4]
[365278068,1749574239660,-460.0,0.00021369,4]
[365278070,1749574239669,-460.0,0.00021369,2]
[365278072,1749574239680,-220.0,0.00021369,4]
[365278073,1749574239690,-460.0,0.00021369,4]
[365278075,1749574239699,-592.36,0.00021369,4]
[365278077,1749574239709,-617.71,0.00021369,4]
[365278079,1749574239718,-460.0,0.00021369,4]
[365278080,1749574239728,-460.0,0.00021369,4]
[365278082,1749574239738,-358.93513878,0.00021369,4]
[365278084,1749574239750,-101.06486122,0.00021369,4]
[365278086,1749574239762,-985.94,0.00021369,4]
[365278088,1749574239771,-983.74,0.00021369,4]
[365278090,1749574239780,-460.0,0.00021369,4]
[365278092,1749574239790,-1146.22,0.00021369,4]
[365278093,1749574239799,-335.32988689,0.00021369,4]
[365278095,1749574239808,-544.99,0.00021369,4]
[365278097,1749574239817,-1423.35,0.00021369,4]
[365278099,1749574239826,-460.0,0.00021369,4]
[365278101,1749574239835,-460.0,0.00021369,4]
[365278103,1749574239845,-875.11,0.00021369,4]
[365278105,1749574239855,-1243.9,0.00021369,4]
[365278106,1749574239864,-1008.16,0.00021369,4]
[365278108,1749574239874,-391.45555516,0.00021369,4]
[365278110,1749574239883,-460.0,0.00021369,4]
[365278112,1749574239893,-460.0,0.00021369,4]
[365278114,1749574239902,-440.0,0.00021369,4]
[365278116,1749574239912,-460.0,0.00021369,4]
[365278118,1749574239921,-482.14,0.00021369,4]
[365278120,1749574239930,-460.0,0.00021369,4]
[365278122,1749574239939,-460.0,0.00021369,4]
[365278124,1749574239947,-460.0,0.00021369,4]
[365278126,1749574239957,-500.0,0.00021489,2]
[365278128,1749574239966,-500.0,0.00021489,2]
[365278130,1749574239976,-172.328352,0.00021494,2]
[365278132,1749574239985,-610.31,0.00021633,10]
[365278134,1749574239995,-460.0,0.00021643,4]
[365278136,1749574240004,-360.0,0.00021643,4]
[365278138,1749574240014,-460.0,0.00021643,4]
[365278140,1749574240022,-460.0,0.00021643,4]
[365278142,1749574240032,-460.0,0.00021643,4]
[365278144,1749574240041,-460.0,0.00021643,4]
[365278146,1749574240050,-659.32,0.00021643,4]
[365278148,1749574240059,-556.71,0.00021643,4]
[365278150,1749574240068,-460.0,0.00021643,4]
[365278152,1749574240078,-460.0,0.00021643,4]
[365278154,1749574240087,-460.0,0.00021643,4]
[365278156,1749574240097,-440.0,0.00021643,4]
[365278158,1749574240106,-460.0,0.00021643,4]
[365278160,1749574240115,-460.0,0.00021643,4]
[365278162,1749574240124,-559.68,0.00021643,4]
[365278164,1749574240133,-460.0,0.00021643,4]
[365278166,1749574240142,-460.0,0.00021643,4]
[365278168,1749574240151,-460.0,0.00021643,4]
[365278170,1749574240160,-767.4,0.00021643,4]
[365278172,1749574240170,-460.0,0.00021643,4]
[365278173,1749574240179,-602.66,0.00021643,4]
[365278175,1749574240189,-460.0,0.00021643,4]
[365278177,1749574240198,-1135.0,0.00021643,4]
[365278180,1749574240210,-296.81337904,0.00021643,4]
[365278182,1749574240222,-416.06662096,0.00021643,4]
[365278184,1749574240232,-460.0,0.00021643,4]
[365278186,1749574240241,-460.0,0.00021643,4]
[365278188,1749574240251,-460.0,0.00021643,2]
[365278190,1749574240260,-358.97826675,0.00021643,4]
[365278192,1749574240269,-592.36,0.00021643,4]
[365278194,1749574240279,-617.71,0.00021643,4]
[365278196,1749574240288,-460.0,0.00021643,4]
[365278198,1749574240297,-985.94,0.00021643,4]
[365278200,1749574240306,-983.74,0.00021643,4]
[365278202,1749574240315,-460.0,0.00021643,4]
[365278204,1749574240325,-1146.22,0.00021643,4]
[365278206,1749574240334,-544.99,0.00021643,4]
[365278208,1749574240344,-1423.35,0.00021643,4]
[365278209,1749574240353,-460.0,0.00021643,4]
[365278210,1749574240362,-460.0,0.00021643,4]
[365278211,1749574240372,-875.11,0.00021643,4]
[365278212,1749574240385,-1243.9,0.00021643,4]
[365278213,1749574240406,-1008.16,0.00021643,4]
[365278215,1749574240415,-460.0,0.00021643,4]
[365278217,1749574240423,-460.0,0.00021643,4]
[365278218,1749574240432,-482.14,0.00021643,4]
[365278220,1749574240442,-460.0,0.00021643,4]
[365278222,1749574240451,-460.0,0.00021643,4]
[365278224,1749574240460,-460.0,0.00021643,4]
[365278226,1749574240469,-1422.84,0.00021777,2]
[365278227,1749574240477,-460.0,0.00021917,4]
[365278228,1749574240486,-460.0,0.00021917,4]
[365278229,1749574240496,-460.0,0.00021917,4]
[365278230,1749574240505,-460.0,0.00021917,4]
[365278231,1749574240514,-659.32,0.00021917,4]
[365278232,1749574240522,-556.71,0.00021917,4]
[365278233,1749574240531,-460.0,0.00021917,4]
[365278234,1749574240540,-460.0,0.00021917,4]